{"text_format":"1","workbook":"xlsx","n_sheets":4,"sheets":["INSTRUCCIONES","COMPLETAR DATOS","HDS COMERCIAL ANASAC","HDST ANASAC"],"not_rendered":{"charts":0,"images":6,"macros":1,"external_links":0,"defined_names":1,"comments":1,"pivot_tables":0},"unopened":[],"bounds":{"document_bytes":16777216,"sheet_cells":100000,"rows_first":2000,"rows_last":500,"rows_between":2000,"halvings":0,"cell_chars":16384,"cell_head_chars":4096},"cells_cut":0,"cells_raw":0,"read":"whole","date_system":"1900"}

{"sheet":"INSTRUCCIONES","index":0,"n_rows":11,"n_cols":3,"rows_kept":11,"cut":false,"hidden":false,"merged":[[2,1,2,2],[10,1,10,2]]}
[]
[]
[null,"Actualización el Generador HDS-HDST: ahora una vez que este completa toda la información, se puede generar de forma automática la HDS GLEBA, HDS ANASAC y HDST en formato PDF la cual se alojara en una carpeta llamada “HDS_HDST” que estará ubicada en “C:\\HDS_HDST” en sus respectivos computadores (Por favor crear la carpeta antes de iniciar el proceso). Es una planilla con macros por lo que es importante habilitar su funcionamiento si es que la planilla lo solicita una vez que se abre."]
[]
[null,"Los comandos para obtener los documentos son:"]
[null,null,"Para HDS ANASAC deben presionar “CTRL+I”"]
[null,null,"Para HDST ANASAC deben presionar “CTRL+U”"]
[]
[]
[]
[null,"Luego les pedirá el nombre con que quieren guardar su archivo PDF y será creado y abierto de inmediato, por ejemplo:"]

{"sheet":"COMPLETAR DATOS","index":1,"n_rows":212,"n_cols":2,"rows_kept":212,"cut":false,"hidden":false,"merged":[]}
[null,"COMPLETAR"]
["Nombre Comercial: ","AQUATRIN 2,5 % SC (Deltametrina 2,5 % SC)"]
["1.- Identificación de la sustancia química y del proveedor"]
["Nombre sustancia química:","Deltametrina 2,5 % SC"]
["Uso recomendado:","INSECTICIDA PIRETROIDE."]
["N° ISP:","P-538/14"]
["Razón social o nombre de Proveedor:","ANASAC AMBIENTAL S.A."]
["Dirección del Proveedor:","Camino Noviciado Norte, Lote 73-B, Lampa"]
["Teléfono:","(56-2) 2 470 6900"]
["Dirección electronica:","www.anasac.cl"]
["Teléfono de emergencia:","(56-2) 2 777 1994 Corporación RITA    "]
[]
["2.- Identificación de los riesgos"]
["Clasificación según NCh 382:","NU 3352, Plaguicida piretroideo líquido, tóxico."]
["Distintivo según NCh 2190:","6.1 TÓXICO"]
["Clasificación según GHS rev 6:"]
["Etiqueta GHS:","CATEGORIA 5"]
["Indicaciones de peligro: "]
[null,"H303 : Puede ser nocivo en caso de ingestión."]
[null,"H313 : Puede ser nocivo en contacto con la piel."]
[null,"H401 : Tóxico para los organismos acuáticos."]
[]
[]
["Consejos de prudencia:","P273 : No dispersar en el medio ambiente."]
[null,"P312 : Llamar a un CENTRO DE TOXICOLOGIA o a un médico si la persona se encuentra mal."]
[null,"P501 : Eliminar el contenido/recipiente de acuerdo a la reglamentación nacional vigente."]
[]
[]
["Señal de seguridad según NCh1411/4:"]
["Res. Exenta SAG N°2195","Clase III. Producto ligeramente Peligroso"]
["Peligro especifico:","No presenta."]
[]
["3.- Información sobre la sustancia o mezcla"]
["a) Componentes Principales  de la Mezcla:","Deltametrina 2,5 %"]
["b) Componentes que contribuyen al riesgo:","NC"]
["Nombre químico (IUPAC):","Deltametrina : (S)-α-cyano-3-phenoxybenzyl (1R,3R)-3-(2,2-dibromovinyl)-2,2-dimethylcyclopropanecarboxylate "]
["Fórmula química:","C22H19Br2NO3"]
["Numero CAS:","52918-63-5"]
["Concentración (%):","Deltametrina 2,5 % p/v"]
[]
["4.-Medidas de primeros auxilios"]
["En caso de inhalación:","Trasladar al afectado al aire fresco, tenderlo y abrigarlo."]
["En caso de contacto con la piel:","Retirar la ropa contaminada y lavar la zona afectada con agua fría y jabón."]
["En caso de contacto con los ojos:","Si el producto ingresó a los ojos, retirar lentes de contactos si procede, lavar los ojos con agua fria por al menos 15 minutos."]
["En caso de Ingestión:","Dar a beber agua solo si el afectado esta consciente. No inducir vómito. En todos los casos, trasladar de inmediato a un centro asistencial"]
["Efectos locales o sistémicos:","Irritante dermal, ocular y de las vías respiratorias"]
["Notas para el médico tratante:","Aplicar tratamiento sintomático."]
["Antídoto:","No se conoce antídoto específico. "]
[]
["5.- Medidas para el combate del fuego"]
["a.-Riesgos específicos a tomar en cuenta en las medidas para el control del fuego:"]
["Agentes de extinción:  ","Usar para extinguir las llamas espuma química (para evitar ignición del vapor) o polvo químico seco. "]
["Contraindicaciones:  ","Presencia de personas sin equipo de protección personal adecuado."]
["b.-Procedimientos especiales para combatir el fuego: ","Asperjar con agua para enfriar sector no afectado. Utilizar como médios de extinción los ya señalados. Aislar la zona afectada. El personal debe ingresar utilizando ropa adecuada para combatir incendios y equipo de respiración autónoma."]
["c.-Equipo de protección personal para el combate del fuego:  ","El personal calificado debe ingresar al sector afectado con ropa especial para combatir incendios, equipo de respiración autónoma y lentes de seguridad con protección lateral."]
["d.-Productos peligrosos que se liberan de la combustión:  ","Dióxido y monóxido de carbono. Bromuro de hidrógeno. Oxidos de nitrógeno."]
[]
["6.- Medidas para controlar derrames o fugas"]
["a.-Medidas de emergencia a tomar si hay derrames de material:"]
["a.- Precauciones personales: ","Aislar el sector afectado, las personas utilizar los elementos de protección adecuados."]
["b.- Precauciones para el medio ambiente:  ","Contener el derrame con sustancias inertes (arena, tierra)."]
["c.- Métodos de limpieza:"]
["c.1 Recuperación:","La recuperación no corresponde ya que la sustancia ha sido contaminada"]
["c.2 Neutralización: ","Aislar la zona afectada, si es posible contener el derrame con sustancias inertes."]
["Eliminación de desechos: ","Barrer y recoger en recipientes claramente identificados. Finalmente, trasladar a un botadero autorizado para este tipo de sustancias, de acuerdo a lo indicado por la autoridad competente, otra alternativa es mediante incineración controlada en horno estándar a temperatura mayor de 1000 ºC con recuperación y filtrado de humos."]
["MEDIDAS PARA CONTROLAR DERRAMES O FUGAS (HDST):",{"$f":"CONCATENATE(B60, \" \", B61, \" \", B63, \" \", B64, \" \",B65)","v":"Aislar el sector afectado, las personas utilizar los elementos de protección adecuados. Contener el derrame con sustancias inertes (arena, tierra). La recuperación no corresponde ya que la sustancia ha sido contaminada Aislar la zona afectada, si es posible contener el derrame con sustancias inertes. Barrer y recoger en recipientes claramente identificados. Finalmente, trasladar a un botadero autorizado para este tipo de sustancias, de acuerdo a lo indicado por la autoridad competente, otra alternativa es mediante incineración controlada en horno estándar a temperatura mayor de 1000 ºC con recuperación y filtrado de humos."}]
[]
["7.- Manipulación y Almacenamiento"]
["7.1- Manipulación"]
["a.-Recomendaciones técnicas:"]
["Exposición de los trabajadores: ","El personal involucrado en el manejo del producto debe utilizar todos los elementos de protección personal recomendados."]
["Prevención del fuego: ","El producto no es inflamable, sin embargo se debe evitar fumar, uso de celulares, lámparas y enchufes que no sean a prueba de explosiones o el uso de cualquier elemento que pudiese generar chispa."]
["Explosión: ","Producto no explosivo."]
["b.-Precauciones para manipulación:"]
["Ventilación general y local:  ","Debe poseer un sistema de ventilación de acuerdo al D.S. 594"]
["Medidas para prevenir la generación de aerosol y polvo:  ","Mantener ventilación adecuada, en caso de barrer el piso hacerlo usando un inerte humedecido, y mantener el residuo en tambores claramente identificados."]
["c.-Manipulación segura específica:"]
["Materiales o sustancias incompatibles para el contacto del producto:  ","Todas aquellas inflamables o reactivas al agua. Sustancias de pH extremos."]
["7.2 Almacenamiento"]
["a.-Aspectos técnicos: ","En depósito autorizado y envases claramente identificados."]
["b.-Condiciones de almacenamiento:"]
["Recomendados:","Lugar fresco y seco, con buena ventilación, los productos deben ser almacenados en estanterias separadas del piso."]
["No recomendados:  ","No se recomienda almacenar junto a alimentos y medicinas de uso animal o humano, semillas y cualquier otro que entre en contacto directo con hombres y animales."]
["c.- Embalajes"]
["Recomendados:  ","Envases sellados, con etiqueta visible."]
["No recomendados: ","Aquellos que presenten fisuras o fugas, con etiquetas en mal estado o sin ellas."]
[]
["8.- Control de exposición y protección personal"]
["8.1.- Esta sección incluye informacion detallada de:"]
["a.-Medidas para reducir la exposición:","Utilizar los elementos de protección personal recomendados."]
["b.-Parámetros para el control:"]
["Límite permisible ponderado (LPP):","No determinados."]
["Límite permisible absoluto (LPA):","No determinados."]
["Límite permisible temporal (LPT):","No determinados."]
["Umbral odorífico:","No determinado."]
["Estándares biológicos:","No determinado."]
["Procedimiento de monitoreo:","No determinado."]
["c.-Equipos de protección personal recomendado para:"]
["Protección respiratoria:","Máscara con filtro del tipo respirador purificador de aire con filtro tipo NIOSH N95 o N100 más cartucho OV."]
["Protección de las manos:","Guantes de neopreno, latex."]
["Protección de los ojos:","Antiparras."]
["Protección de la piel y el cuerpo:","Traje completo de Tyvek con capucha."]
["Otros equipos de protección:","Botas de goma sin forro interior."]
["d.-Medidas de higiene:","No comer, beber, fumar o ir al baño durante la manipulación. Lávese completamente después de  manipular este producto."]
["8.2.- Algunos productos son peligrosos sólo cuando:"]
["a.-Productos en grandes cantidades:","Manipular siguiendo todas las medidas de seguridad aplicables al producto y los elementos de protección personal ya indicados (8.1.c)"]
["b.-Productos de concentración elevada:","Manipular siguiendo todas las medidas de seguridad aplicables al producto y los elementos de protección personal ya indicados (8.1.c)"]
["c.-Exposición a temperaturas:","El producto es estable en condiciones normales de temperatura y presión. Este producto no es inflamable, no es corrosivo ni explosivo."]
["d.-Exposición a presiones:","El producto es estable en condiciones normales de temperatura y presión. Este producto no es inflamable, no es corrosivo ni explosivo."]
[]
["9. Propiedades Físicas y Químicas"]
["a.-Físicas:"]
["Estado físico:","Líquido viscoso"]
["Color y olor:","Color café."]
["Concentración:",{"$f":"B39","v":"Deltametrina 2,5 % p/v"}]
["pH:","7,41"]
["Punto de inflamación:","No Inflamable"]
["Límite de inflamabilidad (LEL-UEL):","No corresponde."]
["Temperatura de auto ignición:","No corresponde."]
["Temperatura de descomposición:","No disponible."]
["Presión de vapor:","No disponible."]
["Densidad de vapor:","No corresponde."]
["Densidad a 20ºC:","1,04 g/mL (20°C)"]
["Punto de Fusión:","No corresponde."]
["Punto de ebullición:","No disponible."]
["b.-Químicas"]
["Dispersabilidad en agua:",1]
["Coeficiente de particion octanol/agua:","No disponible."]
["Corrosividad:","No corrosivo"]
["Indice de volatilidad:","No volatil"]
["Radioactividad:","No radioactivo."]
["Velocidad de propagación de la llama:","No corresponde."]
["Viscosidad: ","1246 cP"]
["Calor de combustión:","No disponible."]
[]
["10.- Estabilidad reactividad"]
[]
["Estabilidad:","Estable durante dos años."]
["Condiciones de almacenaje:","Almacenar en lugar fresco y seco."]
["Recomendados:","Lugar fresco y seco, con buena ventilación, los productos deben ser almacenados en estanterias, separados del piso. En envase cerrado, con su etiqueta visible."]
["No recomendados:","No recomendado almacenar junto a alimentos y medicinas de uso animal o humano, semillas y cualquier otro que entre en contacto directo con hombres y animales."]
["Incompatibilidad (materiales que se deben evitar):  ",{"$f":"B78","v":"Todas aquellas inflamables o reactivas al agua. Sustancias de pH extremos."}]
["Productos peligrosos de la descomposición:  ","No corresponde los metabolitos son biológicamente inactivos."]
["Productos peligrosos de la combustión:",{"$f":"B56","v":"Dióxido y monóxido de carbono. Bromuro de hidrógeno. Oxidos de nitrógeno."}]
["Polimerización peligrosa:","No corresponde."]
["Manejo adecuado o inadecuado:","Almacenar en lugar fresco, seco y bien ventilado. El producto no es inflamable, sin embargo se debe evitar fumar, uso de celulares, lámparas y enchufes que no sean a prueba de explosiones o el uso de cualquier elemento que pudiese generar chispa. El personal involucrado en el manejo del producto debe utilizar todos los elementos de protección personal indicados. Prohibición absoluta de ingreso a personas no autorizadas."]
[]
[]
["11.- Información toxicológica"]
["Toxicidad aguda (DL50):"]
["Toxicidad Aguda Oral:","DL 50 ratas > 2000 mg/kg "]
["Toxicidad Aguda Dermal:","DL 50 conejos > 4000 mg/kg "]
["Toxicidad Aguda Inhalatoria:","No disponible."]
["Irritación Dermal:","Irritante ocular."]
["Irritación Ocular:","Irritante dérmico."]
["Sensibilizaciones alérgicas:","No sensibilizante"]
["Toxicidad crónica:","No disponible"]
["Efectos locales o sistémicos:","Nauseas, debilidad, depresión del sistema nervioso central."]
["Efecto a corto plazo:","Irritante dermal, ocular y de las vías respiratorias"]
["Efectos carcinogénicos:","No carcinogénicos."]
["Efectos mutagénicos:","No mutagénicos."]
["Toxicidad para la reproducción:","No teratogénico."]
["Toxicidad específica – exposición única:","No disponible"]
["Toxicidad específica – exposiciones repetidas:","No disponible"]
["Peligro de inhalación:","Irritación de las vias respiratorias"]
[]
["12.- Información ecológica"]
["Inestabilidad:","Inestable en medio alcalino"]
["Persistencia / degradabilidad:","Se degrada rápidamente en el suelo"]
["Bio-acumulación:","No se bioacumula"]
["Comportamiento sobre el medio ambiente:","No verter en ríos, canales ni fuentes de agua."]
["Posible impacto sobre el ambiente:","No disponible."]
["Ecotoxicidad (aguda):","Aves: mg/Kg DL50 : No disponible."]
[null,"Algas: No disponible."]
[null,"Daphnias: No disponible."]
[null,"Lombrices: No disponible."]
[null,"Peces: mg/L CL50 : No disponible."]
[null,"Abejas: ug/abeja DL50: No disponible."]
[]
["13.- Consideraciones sobre disposición final"]
[null,"Método recomendado para disponer el producto, sus residuos, desechos en forma segura de acuerdo a la legislación vigente."]
[null,"Incineración en hornos tipo Standard a más de 1100ºC de temperatura, 2” de residencia. Eficiencia de combustión y de destrucción: 99.9%"]
[null,"Eliminación de desechos:"]
[null,"Barrer y recoger en recipientes claramente identificados, finalmente trasladar a un  depósito autorizado para este tipo de sustancias, de acuerdo a lo dispuesto por la autoridad competente. "]
[null,"Método recomendado para eliminación de envases o embalajes contaminados, de acuerdo a la legislación vigente: "]
[null,"Confinar los envases en lugar claramente identificado, hasta que la autoridad defina destino final."]
[]
["14.- Información sobre el Transporte"]
[null,"Clase                                   Pack. Group                                         N° ONU                          "]
["CLASE","6.1"]
["PACK GROUP","III"]
["ONU",3352]
[]
["Vía terrestre por carretera o ferrocarril (RID/ADR)",{"$f":" CONCATENATE($B$190, \"                                  \", $B$191, \"                                  \",$B$192)","v":"6.1                                  III                                  3352"}]
["Nombre Adecuado de Embarque","Plaguicida piretroideo líquido, tóxico."]
[]
["Vía marítimo (IMDG)",{"$f":"+B194","v":"6.1                                  III                                  3352"}]
["Nombre Adecuado de Embarque",{"$f":"B195","v":"Plaguicida piretroideo líquido, tóxico."}]
[]
["Vía aérea (ICAO/IATA)",{"$f":"+B194","v":"6.1                                  III                                  3352"}]
["Nombre Adecuado de Embarque",{"$f":"B195","v":"Plaguicida piretroideo líquido, tóxico."}]
[]
[]
["15.- Información reglamentaria"]
["Normas internacionales aplicables:","RID, IATA, IMDG."]
["Normas nacionales aplicables:","NCh 2245"]
[]
["16.- Otras Informaciones"]
["Control de cambios:","Actualización a NCh 2245 año 2015"]
["Abreviaturas y acronimos:","DL50: Dosis letal 50.\nCL50: Concentración letal 50."]
["Referencias:","Estudios de la empresa presentados al servicio agricola y ganadero (SAG) para la obstención del registro."]
["Vigencia","1 año a partir de la fecha de actualización"]

{"sheet":"HDS COMERCIAL ANASAC","index":2,"n_rows":257,"n_cols":4,"rows_kept":257,"cut":false,"hidden":false,"merged":[[131,1,131,3],[156,1,156,3],[179,1,179,3],[229,2,229,3],[230,2,230,3],[251,1,251,3],[133,1,133,2],[225,2,225,3],[226,2,226,3],[227,2,227,3],[149,1,149,2],[191,1,191,3],[209,1,209,3],[223,1,223,3],[232,1,232,3],[246,1,246,3],[228,2,228,3],[234,2,234,3],[74,2,74,3],[79,2,79,3],[81,2,81,3],[63,2,63,3],[76,2,76,3],[78,2,78,3],[80,2,80,3],[72,1,72,3],[1,1,1,3],[3,1,3,3],[52,1,52,3],[14,1,14,3],[61,1,61,3],[82,2,82,3],[85,2,85,3],[91,2,91,3],[93,2,93,3],[96,2,96,3],[84,2,84,3],[87,1,87,3],[98,2,98,3],[89,2,89,3],[94,2,94,3],[116,2,116,3],[102,1,102,3],[123,2,123,3],[125,2,125,3],[120,2,120,3],[100,2,100,3],[107,2,107,3],[109,2,109,3],[114,2,114,3],[113,2,113,3],[118,1,118,2],[104,1,104,2],[117,2,117,3]]}
[]
[null,"HOJA DE DATOS DE  SEGURIDAD (HDS)"]
[]
[null,"1.- Identificación de la sustancia química y del proveedor"]
[]
[null,"-","Nombre sustancia química:",{"$f":"+'COMPLETAR DATOS'!B4","v":"Deltametrina 2,5 % SC"}]
[null,"-","Uso recomendado:",{"$f":"+'COMPLETAR DATOS'!B5","v":"INSECTICIDA PIRETROIDE."}]
[null,"-","N° ISP:",{"$f":"+'COMPLETAR DATOS'!B6","v":"P-538/14"}]
[null,"-","Proveedor/ Fabricante/Comercializador:",{"$f":"+'COMPLETAR DATOS'!B7","v":"ANASAC AMBIENTAL S.A."}]
[null,"-","Dirección:",{"$f":"+'COMPLETAR DATOS'!B8","v":"Camino Noviciado Norte, Lote 73-B, Lampa"}]
[null,"-","Teléfono:",{"$f":"+'COMPLETAR DATOS'!B9","v":"(56-2) 2 470 6900"}]
[null,"-","Dirección electronica:",{"$f":"+'COMPLETAR DATOS'!B10","v":"www.anasac.cl"}]
[null,"-","Teléfono de Emergencia:",{"$f":"+'COMPLETAR DATOS'!B11","v":"(56-2) 2 777 1994 Corporación RITA    "}]
[]
[null,"2.- Identificación de los riesgos"]
[]
[null,"-",{"$f":"'COMPLETAR DATOS'!A14","v":"Clasificación según NCh 382:"},{"$f":"+'COMPLETAR DATOS'!B14","v":"NU 3352, Plaguicida piretroideo líquido, tóxico."}]
[null,"-",{"$f":"'COMPLETAR DATOS'!A15","v":"Distintivo según NCh 2190:"},{"$f":"'COMPLETAR DATOS'!B15","v":"6.1 TÓXICO"}]
[]
[]
[]
[]
[]
[]
[null,"-",{"$f":"'COMPLETAR DATOS'!A16","v":"Clasificación según GHS rev 6:"},{"$f":"'COMPLETAR DATOS'!B17","v":"CATEGORIA 5"}]
[]
[]
[]
[]
[]
[]
[null,"-",{"$f":"'COMPLETAR DATOS'!A17","v":"Etiqueta GHS:"}]
[null,"-",{"$f":"'COMPLETAR DATOS'!A18","v":"Indicaciones de peligro: "},{"$f":"'COMPLETAR DATOS'!B19","v":"H303 : Puede ser nocivo en caso de ingestión."}]
[null,null,null,{"$f":"'COMPLETAR DATOS'!B20","v":"H313 : Puede ser nocivo en contacto con la piel."}]
[null,null,null,{"$f":"'COMPLETAR DATOS'!B21","v":"H401 : Tóxico para los organismos acuáticos."}]
[]
[]
[null,"-",{"$f":"'COMPLETAR DATOS'!A24","v":"Consejos de prudencia:"},{"$f":"'COMPLETAR DATOS'!B24","v":"P273 : No dispersar en el medio ambiente."}]
[null,null,null,{"$f":"'COMPLETAR DATOS'!B25","v":"P312 : Llamar a un CENTRO DE TOXICOLOGIA o a un médico si la persona se encuentra mal."}]
[null,null,null,{"$f":"'COMPLETAR DATOS'!B26","v":"P501 : Eliminar el contenido/recipiente de acuerdo a la reglamentación nacional vigente."}]
[]
[]
[]
[null,"-",{"$f":"'COMPLETAR DATOS'!A29","v":"Señal de seguridad según NCh1411/4:"}]
[]
[]
[]
[]
[]
[null,"-",{"$f":"'COMPLETAR DATOS'!A30","v":"Res. Exenta SAG N°2195"},{"$f":"'COMPLETAR DATOS'!B30","v":"Clase III. Producto ligeramente Peligroso"}]
[null,"-",{"$f":"'COMPLETAR DATOS'!A31","v":"Peligro especifico:"},{"$f":"'COMPLETAR DATOS'!B31","v":"No presenta."}]
[]
[null,"3.- Información sobre la sustancia o mezcla"]
[]
[null,"-","Componentes Principales  de la Mezcla:",{"$f":"+'COMPLETAR DATOS'!B34","v":"Deltametrina 2,5 %"}]
[null,"-","Componentes que contribuyen al riesgo:",{"$f":"+'COMPLETAR DATOS'!B35","v":"NC"}]
[null,"-","Nombre químico (IUPAC):",{"$f":"+'COMPLETAR DATOS'!B36","v":"Deltametrina : (S)-α-cyano-3-phenoxybenzyl (1R,3R)-3-(2,2-dibromovinyl)-2,2-dimethylcyclopropanecarboxylate "}]
[null,"-","Fórmula química:",{"$f":"+'COMPLETAR DATOS'!B37","v":"C22H19Br2NO3"}]
[null,"-","N° CAS:",{"$f":"+'COMPLETAR DATOS'!B38","v":"52918-63-5"}]
[null,"-","Concentración (%):",{"$f":"+'COMPLETAR DATOS'!B39","v":"Deltametrina 2,5 % p/v"}]
[]
[null,"4.-Emergencia y primeros auxilios"]
[]
[null,null,"En caso de contacto accidental con el producto proceder de acuerdo con:"]
[null,"-","Inhalación:",{"$f":"'COMPLETAR DATOS'!B42","v":"Trasladar al afectado al aire fresco, tenderlo y abrigarlo."}]
[null,"-","Contacto con la piel:",{"$f":"'COMPLETAR DATOS'!B43","v":"Retirar la ropa contaminada y lavar la zona afectada con agua fría y jabón."}]
[null,"-","Contacto con los ojos:",{"$f":"'COMPLETAR DATOS'!B44","v":"Si el producto ingresó a los ojos, retirar lentes de contactos si procede, lavar los ojos con agua fria por al menos 15 minutos."}]
[null,"-","Ingestión:",{"$f":"'COMPLETAR DATOS'!B45","v":"Dar a beber agua solo si el afectado esta consciente. No inducir vómito. En todos los casos, trasladar de inmediato a un centro asistencial"}]
[null,"-",{"$f":"'COMPLETAR DATOS'!A46","v":"Efectos locales o sistémicos:"},{"$f":"'COMPLETAR DATOS'!B46","v":"Irritante dermal, ocular y de las vías respiratorias"}]
[null,"-","Notas para el médico tratante:",{"$f":"'COMPLETAR DATOS'!B47","v":"Aplicar tratamiento sintomático."}]
[null,"-","Antídoto:",{"$f":"'COMPLETAR DATOS'!B48","v":"No se conoce antídoto específico. "}]
[]
[null,"5.- Medidas para el combate del fuego"]
[]
[null,"a.- ","Riesgos específicos a tomar en cuenta en las medidas para el control del fuego:"]
[null,"-","Agentes de extinción:  "]
[null,null,{"$f":"'COMPLETAR DATOS'!B52","v":"Usar para extinguir las llamas espuma química (para evitar ignición del vapor) o polvo químico seco. "}]
[null,"-","Contraindicaciones:  "]
[null,null,{"$f":"'COMPLETAR DATOS'!B53","v":"Presencia de personas sin equipo de protección personal adecuado."}]
[null,"b.-","Procedimientos especiales para combatir el fuego: "]
[null,null,{"$f":"'COMPLETAR DATOS'!B54","v":"Asperjar con agua para enfriar sector no afectado. Utilizar como médios de extinción los ya señalados. Aislar la zona afectada. El personal debe ingresar utilizando ropa adecuada para combatir incendios y equipo de respiración autónoma."}]
[null,"c.-","Equipo de protección personal para el combate del fuego:  "]
[null,null,{"$f":"'COMPLETAR DATOS'!B55","v":"El personal calificado debe ingresar al sector afectado con ropa especial para combatir incendios, equipo de respiración autónoma y lentes de seguridad con protección lateral."}]
[]
[null,"d.-","Productos peligrosos que se liberan de la combustión:  "]
[null,null,{"$f":"'COMPLETAR DATOS'!B56","v":"Dióxido y monóxido de carbono. Bromuro de hidrógeno. Oxidos de nitrógeno."}]
[]
[null,"6.- Medidas para controlar derrames o fugas"]
[]
[null,"a.-","Medidas de emergencia a tomar si hay derrames de material:"]
[null,"-","Para personas: "]
[null,null,{"$f":"'COMPLETAR DATOS'!B60","v":"Aislar el sector afectado, las personas utilizar los elementos de protección adecuados."}]
[null,"-","Para el medio ambiente:  "]
[null,null,{"$f":"'COMPLETAR DATOS'!B61","v":"Contener el derrame con sustancias inertes (arena, tierra)."}]
[null,"b.-","Método de limpieza:"]
[null,"-","Recuperación:"]
[null,null,{"$f":"'COMPLETAR DATOS'!B63","v":"La recuperación no corresponde ya que la sustancia ha sido contaminada"}]
[null,"-","Neutralización: "]
[null,null,{"$f":"'COMPLETAR DATOS'!B64","v":"Aislar la zona afectada, si es posible contener el derrame con sustancias inertes."}]
[null,"-","Eliminación de desechos: "]
[null,null,{"$f":"'COMPLETAR DATOS'!B65","v":"Barrer y recoger en recipientes claramente identificados. Finalmente, trasladar a un botadero autorizado para este tipo de sustancias, de acuerdo a lo indicado por la autoridad competente, otra alternativa es mediante incineración controlada en horno estándar a temperatura mayor de 1000 ºC con recuperación y filtrado de humos."}]
[]
[null,"7.-Manipulación y almacenamiento"]
[]
[null,"7.1.- Manipulación"]
[null,"a.-","Recomendaciones técnicas:"]
[null,"-","Exposición de los trabajadores: "]
[null,null,{"$f":"'COMPLETAR DATOS'!B71","v":"El personal involucrado en el manejo del producto debe utilizar todos los elementos de protección personal recomendados."}]
[null,"-","Prevención del fuego: "]
[null,null,{"$f":"'COMPLETAR DATOS'!B72","v":"El producto no es inflamable, sin embargo se debe evitar fumar, uso de celulares, lámparas y enchufes que no sean a prueba de explosiones o el uso de cualquier elemento que pudiese generar chispa."}]
[null,"-","Explosión: ",{"$f":"'COMPLETAR DATOS'!B73","v":"Producto no explosivo."}]
[null,"b.-","Precauciones para manipulación:"]
[null,"-","Ventilación general y local:  ",{"$f":"'COMPLETAR DATOS'!B75","v":"Debe poseer un sistema de ventilación de acuerdo al D.S. 594"}]
[null,"-","Medidas para prevenir la generación de aerosol y polvo:  "]
[null,null,{"$f":"'COMPLETAR DATOS'!B76","v":"Mantener ventilación adecuada, en caso de barrer el piso hacerlo usando un inerte humedecido, y mantener el residuo en tambores claramente identificados."}]
[null,"c.-","Manipulación segura específica:"]
[null,"-","Materiales o sustancias incompatibles para el contacto del producto:  "]
[null,null,{"$f":"'COMPLETAR DATOS'!B78","v":"Todas aquellas inflamables o reactivas al agua. Sustancias de pH extremos."}]
[null,"7.2.- Almacenamiento"]
[null,"a.-","Aspectos técnicos: "]
[null,null,{"$f":"'COMPLETAR DATOS'!B80","v":"En depósito autorizado y envases claramente identificados."}]
[null,"b.-","Condiciones de almacenamiento:"]
[null,"-","Recomendados:"]
[null,null,{"$f":"'COMPLETAR DATOS'!B82","v":"Lugar fresco y seco, con buena ventilación, los productos deben ser almacenados en estanterias separadas del piso."}]
[null,"-","No recomendados:  "]
[null,null,{"$f":"'COMPLETAR DATOS'!B83","v":"No se recomienda almacenar junto a alimentos y medicinas de uso animal o humano, semillas y cualquier otro que entre en contacto directo con hombres y animales."}]
[null,"c.-","Embalajes"]
[null,"-","Recomendados:  ",{"$f":"'COMPLETAR DATOS'!B85","v":"Envases sellados, con etiqueta visible."}]
[null,"-","No recomendados: ",{"$f":"'COMPLETAR DATOS'!B86","v":"Aquellos que presenten fisuras o fugas, con etiquetas en mal estado o sin ellas."}]
[]
[]
[null,"8.- Control de exposición y protección personal"]
[]
[null,"8.1.- Control de exposición"]
[null,"a.-","Medidas para reducir la exposición:",{"$f":"'COMPLETAR DATOS'!B90","v":"Utilizar los elementos de protección personal recomendados."}]
[null,"b.-","Parámetros para el control:"]
[null,"-","Límite permisible ponderado (LPP):",{"$f":"'COMPLETAR DATOS'!B92","v":"No determinados."}]
[null,"-","Límite permisible absoluto (LPA):",{"$f":"'COMPLETAR DATOS'!B93","v":"No determinados."}]
[null,"-","Límite permisible temporal (LPT):",{"$f":"'COMPLETAR DATOS'!B94","v":"No determinados."}]
[null,"-","Umbral odorífico:",{"$f":"'COMPLETAR DATOS'!B95","v":"No determinado."}]
[null,"-","Estándares biológicos:",{"$f":"'COMPLETAR DATOS'!B96","v":"No determinado."}]
[null,"-","Procedimiento de monitoreo:",{"$f":"'COMPLETAR DATOS'!B97","v":"No determinado."}]
[null,"c.-","Equipos de protección personal recomendado para:"]
[null,"-","Protección respiratoria:",{"$f":"'COMPLETAR DATOS'!B99","v":"Máscara con filtro del tipo respirador purificador de aire con filtro tipo NIOSH N95 o N100 más cartucho OV."}]
[null,"-","Protección de las manos:",{"$f":"'COMPLETAR DATOS'!B100","v":"Guantes de neopreno, latex."}]
[null,"-","Protección de los ojos:",{"$f":"'COMPLETAR DATOS'!B101","v":"Antiparras."}]
[null,"-","Protección de la piel y el cuerpo:",{"$f":"'COMPLETAR DATOS'!B102","v":"Traje completo de Tyvek con capucha."}]
[null,"-","Otros equipos de protección:",{"$f":"'COMPLETAR DATOS'!B103","v":"Botas de goma sin forro interior."}]
[null,"d.-","Medidas de higiene:",{"$f":"'COMPLETAR DATOS'!B104","v":"No comer, beber, fumar o ir al baño durante la manipulación. Lávese completamente después de  manipular este producto."}]
[null,"8.2.- Control de exposición"]
[null,"a.-","Productos en grandes cantidades:",{"$f":"'COMPLETAR DATOS'!B106","v":"Manipular siguiendo todas las medidas de seguridad aplicables al producto y los elementos de protección personal ya indicados (8.1.c)"}]
[null,"b.-","Productos de concentración elevada:",{"$f":"'COMPLETAR DATOS'!B107","v":"Manipular siguiendo todas las medidas de seguridad aplicables al producto y los elementos de protección personal ya indicados (8.1.c)"}]
[null,"c.-","Exposición a temperaturas:",{"$f":"'COMPLETAR DATOS'!B108","v":"El producto es estable en condiciones normales de temperatura y presión. Este producto no es inflamable, no es corrosivo ni explosivo."}]
[null,"d.-","Exposición a presiones:",{"$f":"'COMPLETAR DATOS'!B109","v":"El producto es estable en condiciones normales de temperatura y presión. Este producto no es inflamable, no es corrosivo ni explosivo."}]
[]
[]
[null,"9.- Propiedades físicas y químicas"]
[]
[null,"a.-","Físicas:"]
[null,"-","Estado físico:",{"$f":"'COMPLETAR DATOS'!B113","v":"Líquido viscoso"}]
[null,"-","Apariencia y olor:",{"$f":"'COMPLETAR DATOS'!B114","v":"Color café."}]
[null,"-","Concentración:",{"$f":"'COMPLETAR DATOS'!B115","v":"Deltametrina 2,5 % p/v"}]
[null,"-","pH:",{"$f":"'COMPLETAR DATOS'!B116","v":"7,41"}]
[null,"-","Punto de inflamación:",{"$f":"'COMPLETAR DATOS'!B117","v":"No Inflamable"}]
[null,"-","Límite de inflamabilidad (LEL-UEL):",{"$f":"'COMPLETAR DATOS'!B118","v":"No corresponde."}]
[null,"-","Temperatura de auto ignición:",{"$f":"'COMPLETAR DATOS'!B119","v":"No corresponde."}]
[null,"-","Temperatura de descomposición:",{"$f":"'COMPLETAR DATOS'!B120","v":"No disponible."}]
[null,"-","Presión de vapor:",{"$f":"'COMPLETAR DATOS'!B121","v":"No disponible."}]
[null,"-","Densidad de vapor:",{"$f":"'COMPLETAR DATOS'!B122","v":"No corresponde."}]
[null,"-","Densidad a 20ºC:",{"$f":"'COMPLETAR DATOS'!B123","v":"1,04 g/mL (20°C)"}]
[null,"b.-","Químicas"]
[null,"-","Dispersabilidad en agua:",{"$f":"'COMPLETAR DATOS'!B127","v":1}]
[null,"-","Corrosividad:",{"$f":"'COMPLETAR DATOS'!B129","v":"No corrosivo"}]
[null,"-","Indice de volatilidad:",{"$f":"'COMPLETAR DATOS'!B130","v":"No volatil"}]
[null,"-","Radioactividad:",{"$f":"'COMPLETAR DATOS'!B131","v":"No radioactivo."}]
[null,"-","Velocidad de propagación de la llama:",{"$f":"'COMPLETAR DATOS'!B132","v":"No corresponde."}]
[null,"-","Viscosidad: ",{"$f":"'COMPLETAR DATOS'!B133","v":"1246 cP"}]
[null,"-","Calor de combustión:",{"$f":"'COMPLETAR DATOS'!B134","v":"No disponible."}]
[]
[null,"10.- Estabilidad y reactividad"]
[]
[null,"-","Estabilidad:",{"$f":"'COMPLETAR DATOS'!B138","v":"Estable durante dos años."}]
[null,"-","Condiciones de almacenaje:",{"$f":"'COMPLETAR DATOS'!B139","v":"Almacenar en lugar fresco y seco."}]
[null,"-","Recomendados:",{"$f":"'COMPLETAR DATOS'!B140","v":"Lugar fresco y seco, con buena ventilación, los productos deben ser almacenados en estanterias, separados del piso. En envase cerrado, con su etiqueta visible."}]
[null,"-","No recomendados:",{"$f":"'COMPLETAR DATOS'!B141","v":"No recomendado almacenar junto a alimentos y medicinas de uso animal o humano, semillas y cualquier otro que entre en contacto directo con hombres y animales."}]
[null,"-","Incompatibilidad (materiales que se deben evitar):  ",{"$f":"'COMPLETAR DATOS'!B142","v":"Todas aquellas inflamables o reactivas al agua. Sustancias de pH extremos."}]
[null,"-","Productos peligrosos de la descomposición:  ",{"$f":"'COMPLETAR DATOS'!B143","v":"No corresponde los metabolitos son biológicamente inactivos."}]
[null,"-","Productos peligrosos de la combustión:",{"$f":"'COMPLETAR DATOS'!B144","v":"Dióxido y monóxido de carbono. Bromuro de hidrógeno. Oxidos de nitrógeno."}]
[null,"-","Polimerización peligrosa:",{"$f":"'COMPLETAR DATOS'!B145","v":"No corresponde."}]
[null,"-","Manejo adecuado o inadecuado:",{"$f":"'COMPLETAR DATOS'!B146","v":"Almacenar en lugar fresco, seco y bien ventilado. El producto no es inflamable, sin embargo se debe evitar fumar, uso de celulares, lámparas y enchufes que no sean a prueba de explosiones o el uso de cualquier elemento que pudiese generar chispa. El personal involucrado en el manejo del producto debe utilizar todos los elementos de protección personal indicados. Prohibición absoluta de ingreso a personas no autorizadas."}]
[]
[null,"11.- Información toxicológica"]
[]
[null,"-",{"$f":"'COMPLETAR DATOS'!A151","v":"Toxicidad Aguda Oral:"},{"$f":"'COMPLETAR DATOS'!B151","v":"DL 50 ratas > 2000 mg/kg "}]
[null,"-",{"$f":"'COMPLETAR DATOS'!A152","v":"Toxicidad Aguda Dermal:"},{"$f":"'COMPLETAR DATOS'!B152","v":"DL 50 conejos > 4000 mg/kg "}]
[null,"-",{"$f":"'COMPLETAR DATOS'!A153","v":"Toxicidad Aguda Inhalatoria:"},{"$f":"'COMPLETAR DATOS'!B153","v":"No disponible."}]
[null,"-",{"$f":"'COMPLETAR DATOS'!A154","v":"Irritación Dermal:"},{"$f":"'COMPLETAR DATOS'!B154","v":"Irritante ocular."}]
[null,"-",{"$f":"'COMPLETAR DATOS'!A155","v":"Irritación Ocular:"},{"$f":"'COMPLETAR DATOS'!B155","v":"Irritante dérmico."}]
[null,"-",{"$f":"'COMPLETAR DATOS'!A156","v":"Sensibilizaciones alérgicas:"},{"$f":"'COMPLETAR DATOS'!B156","v":"No sensibilizante"}]
[null,"-",{"$f":"'COMPLETAR DATOS'!A157","v":"Toxicidad crónica:"},{"$f":"'COMPLETAR DATOS'!B157","v":"No disponible"}]
[null,"-",{"$f":"'COMPLETAR DATOS'!A158","v":"Efectos locales o sistémicos:"},{"$f":"'COMPLETAR DATOS'!B158","v":"Nauseas, debilidad, depresión del sistema nervioso central."}]
[null,"-",{"$f":"'COMPLETAR DATOS'!A159","v":"Efecto a corto plazo:"},{"$f":"'COMPLETAR DATOS'!B159","v":"Irritante dermal, ocular y de las vías respiratorias"}]
[null,"-",{"$f":"'COMPLETAR DATOS'!A160","v":"Efectos carcinogénicos:"},{"$f":"'COMPLETAR DATOS'!B160","v":"No carcinogénicos."}]
[null,"-",{"$f":"'COMPLETAR DATOS'!A161","v":"Efectos mutagénicos:"},{"$f":"'COMPLETAR DATOS'!B161","v":"No mutagénicos."}]
[null,"-",{"$f":"'COMPLETAR DATOS'!A162","v":"Toxicidad para la reproducción:"},{"$f":"'COMPLETAR DATOS'!B162","v":"No teratogénico."}]
[null,"-",{"$f":"'COMPLETAR DATOS'!A163","v":"Toxicidad específica – exposición única:"},{"$f":"'COMPLETAR DATOS'!B163","v":"No disponible"}]
[null,"-",{"$f":"'COMPLETAR DATOS'!A164","v":"Toxicidad específica – exposiciones repetidas:"},{"$f":"'COMPLETAR DATOS'!B164","v":"No disponible"}]
[null,"-",{"$f":"'COMPLETAR DATOS'!A165","v":"Peligro de inhalación:"},{"$f":"'COMPLETAR DATOS'!B165","v":"Irritación de las vias respiratorias"}]
[]
[null,"12.- Información ecológica"]
[]
[null,"-","Inestabilidad:",{"$f":"'COMPLETAR DATOS'!B168","v":"Inestable en medio alcalino"}]
[null,"-","Persistencia / degradabilidad:",{"$f":"'COMPLETAR DATOS'!B169","v":"Se degrada rápidamente en el suelo"}]
[null,"-","Bio-acumulación:",{"$f":"'COMPLETAR DATOS'!B170","v":"No se bioacumula"}]
[null,"-","Comportamiento sobre el medio ambiente:",{"$f":"'COMPLETAR DATOS'!B171","v":"No verter en ríos, canales ni fuentes de agua."}]
[null,"-","Posible impacto sobre el ambiente:",{"$f":"'COMPLETAR DATOS'!B172","v":"No disponible."}]
[null,"-",{"$f":"'COMPLETAR DATOS'!A173","v":"Ecotoxicidad (aguda):"},{"$f":"'COMPLETAR DATOS'!B173","v":"Aves: mg/Kg DL50 : No disponible."}]
[null,null,null,{"$f":"'COMPLETAR DATOS'!B174","v":"Algas: No disponible."}]
[null,null,null,{"$f":"'COMPLETAR DATOS'!B175","v":"Daphnias: No disponible."}]
[null,null,null,{"$f":"'COMPLETAR DATOS'!B176","v":"Lombrices: No disponible."}]
[null,null,null,{"$f":"'COMPLETAR DATOS'!B177","v":"Peces: mg/L CL50 : No disponible."}]
[null,null,null,{"$f":"'COMPLETAR DATOS'!B178","v":"Abejas: ug/abeja DL50: No disponible."}]
[]
[null,"13.- Consideraciones sobre disposición final"]
[]
[null,"-",{"$f":"'COMPLETAR DATOS'!B181","v":"Método recomendado para disponer el producto, sus residuos, desechos en forma segura de acuerdo a la legislación vigente."}]
[null,null,{"$f":"'COMPLETAR DATOS'!B182","v":"Incineración en hornos tipo Standard a más de 1100ºC de temperatura, 2” de residencia. Eficiencia de combustión y de destrucción: 99.9%"}]
[null,"-",{"$f":"'COMPLETAR DATOS'!B183","v":"Eliminación de desechos:"}]
[null,null,{"$f":"'COMPLETAR DATOS'!B184","v":"Barrer y recoger en recipientes claramente identificados, finalmente trasladar a un  depósito autorizado para este tipo de sustancias, de acuerdo a lo dispuesto por la autoridad competente. "}]
[null,"-",{"$f":"'COMPLETAR DATOS'!B185","v":"Método recomendado para eliminación de envases o embalajes contaminados, de acuerdo a la legislación vigente: "}]
[null,null,{"$f":"'COMPLETAR DATOS'!B186","v":"Confinar los envases en lugar claramente identificado, hasta que la autoridad defina destino final."}]
[]
[null,"14.- Información sobre el tranporte"]
[]
[null,null,"Se requieren los códigos y clasificaciones de acuerdo con regulaciones y normas nacionales, para transporte seguro de sustancias peligrosas."]
[]
[null,null,null,"Clase                        Pack. Group                   N° ONU   "]
[null,null,"Vía terrestre por carretera o ferrocarril (RID/ADR)",{"$f":"+'COMPLETAR DATOS'!B194","v":"6.1                                  III                                  3352"}]
[null,null,"Nombre Adecuado de Embarque",{"$f":"+'COMPLETAR DATOS'!B195","v":"Plaguicida piretroideo líquido, tóxico."}]
[null,null,null,"Clase                        Pack. Group                   N° ONU   "]
[null,null,"Vía marítimo (IMDG)",{"$f":"+'COMPLETAR DATOS'!B197","v":"6.1                                  III                                  3352"}]
[null,null,"Nombre Adecuado de Embarque",{"$f":"+'COMPLETAR DATOS'!B198","v":"Plaguicida piretroideo líquido, tóxico."}]
[null,null,null,"Clase                        Pack. Group                   N° ONU   "]
[null,null,"Vía aérea (ICAO/IATA)",{"$f":"+'COMPLETAR DATOS'!B200","v":"6.1                                  III                                  3352"}]
[null,null,"Nombre Adecuado de Embarque",{"$f":"+'COMPLETAR DATOS'!B201","v":"Plaguicida piretroideo líquido, tóxico."}]
[]
[null,"15.- Información reglamentaria"]
[]
[null,"-","Normas internacionales aplicables:",{"$f":"'COMPLETAR DATOS'!B205","v":"RID, IATA, IMDG."}]
[null,"-","Normas nacionales aplicables:",{"$f":"'COMPLETAR DATOS'!B206","v":"NCh 2245"}]
[]
[null,"16.- Otras informaciones"]
[]
[null,"-",{"$f":"'COMPLETAR DATOS'!A209","v":"Control de cambios:"},{"$f":"'COMPLETAR DATOS'!B209","v":"Actualización a NCh 2245 año 2015"}]
[null,"-",{"$f":"'COMPLETAR DATOS'!A210","v":"Abreviaturas y acronimos:"},{"$f":"'COMPLETAR DATOS'!B210","v":"DL50: Dosis letal 50.\nCL50: Concentración letal 50."}]
[null,"-",{"$f":"'COMPLETAR DATOS'!A211","v":"Referencias:"},{"$f":"'COMPLETAR DATOS'!B211","v":"Estudios de la empresa presentados al servicio agricola y ganadero (SAG) para la obstención del registro."}]
[null,"-",{"$f":"'COMPLETAR DATOS'!A212","v":"Vigencia"},{"$f":"'COMPLETAR DATOS'!B212","v":"1 año a partir de la fecha de actualización"}]

{"sheet":"HDST ANASAC","index":3,"n_rows":58,"n_cols":4,"rows_kept":58,"cut":false,"hidden":false,"merged":[[44,1,44,5],[47,1,47,4],[0,1,1,3],[14,3,14,9],[25,1,25,9],[30,1,30,9],[6,1,6,9],[8,3,8,9],[7,3,7,9],[9,3,9,9],[10,3,10,9],[4,1,4,9],[26,3,26,9],[13,3,13,9],[15,3,15,9],[16,3,16,9],[33,3,33,9],[28,3,28,9],[27,3,27,9],[57,3,57,4],[34,3,34,9],[37,3,37,9],[38,3,38,9],[39,3,39,9],[40,3,40,9],[42,1,42,9],[48,3,48,9],[49,3,49,5],[50,3,50,5],[54,1,56,9],[45,1,46,9],[43,1,43,9],[3,1,3,9],[18,1,18,9],[12,1,12,9],[32,3,32,9],[31,3,31,9],[19,3,19,6],[21,1,21,9]]}
[null,{"$f":"+'COMPLETAR DATOS'!B2","v":"AQUATRIN 2,5 % SC (Deltametrina 2,5 % SC)"}]
[]
[]
[null,"HOJA DE DATOS DE SEGURIDAD PARA TRANSPORTE Y EMERGENCIA                "]
[null,"(NCh. 2353. Of96)"]
[]
[null,"1. ENCABEZAMIENTO"]
[null,"Nombre o Razón Social",": ",{"$f":"+'COMPLETAR DATOS'!B7","v":"ANASAC AMBIENTAL S.A."}]
[null,"Dirección del Proveedor",": ",{"$f":"+'COMPLETAR DATOS'!B8","v":"Camino Noviciado Norte, Lote 73-B, Lampa"}]
[null,"Teléfono",": ",{"$f":"+'COMPLETAR DATOS'!B9","v":"(56-2) 2 470 6900"}]
[null,"Fono de emergencia",": ",{"$f":"+'COMPLETAR DATOS'!B11","v":"(56-2) 2 777 1994 Corporación RITA    "}]
[]
[null,"2. DATOS RELATIVOS AL RIESGO"]
[null,"Numero UN",": ",{"$f":"+'COMPLETAR DATOS'!B14","v":"NU 3352, Plaguicida piretroideo líquido, tóxico."}]
[null,"Número CAS",": ",{"$f":"+'COMPLETAR DATOS'!B38","v":"52918-63-5"}]
[null,"Clase o División de Riesgo",": ",{"$f":"+'COMPLETAR DATOS'!B15","v":"6.1 TÓXICO"}]
[null,"Grupo Embalaje/Envasado",": ",{"$f":"+'COMPLETAR DATOS'!B191","v":"III"}]
[]
[null,"3. NOMBRE DE LA SUSTANCIA QUÍMICA"]
[null,"Nombre y Concentración Ingrediente Activo",": ",{"$f":"'COMPLETAR DATOS'!B115","v":"Deltametrina 2,5 % p/v"}]
[]
[null,"4. DESCRIPCIÓN GENERAL"]
[null,"Estado Físico",":",{"$f":"+'COMPLETAR DATOS'!B113","v":"Líquido viscoso"}]
[null,"Color",":",{"$f":"+'COMPLETAR DATOS'!B114","v":"Color café."}]
[]
[null,"5. NATURALEZA DEL RIESGO:"]
[null,"a) Riesgos mas importantes de la sustancia y sus efectos:",":",{"$f":"+'COMPLETAR DATOS'!B201","v":"Plaguicida piretroideo líquido, tóxico."}]
[null,"b) Estabilidad y reactividad:",":",{"$f":"CONCATENATE('COMPLETAR DATOS'!B138, \"  \", 'COMPLETAR DATOS'!B142, \" Productos peligrosos de la combustión: \",'COMPLETAR DATOS'!B144)","v":"Estable durante dos años.  Todas aquellas inflamables o reactivas al agua. Sustancias de pH extremos. Productos peligrosos de la combustión: Dióxido y monóxido de carbono. Bromuro de hidrógeno. Oxidos de nitrógeno."}]
[null,"c) Información Toxicológica:",":",{"$f":"+'COMPLETAR DATOS'!B30","v":"Clase III. Producto ligeramente Peligroso"}]
[]
[null,"6. ELEMENTOS DE PROTECCIÓN"]
[null,"Protección respiratoria:",":",{"$f":"+'COMPLETAR DATOS'!B99","v":"Máscara con filtro del tipo respirador purificador de aire con filtro tipo NIOSH N95 o N100 más cartucho OV."}]
[null,"Protección de las manos:",":",{"$f":"+'COMPLETAR DATOS'!B100","v":"Guantes de neopreno, latex."}]
[null,"Protección de la vista:",":",{"$f":"+'COMPLETAR DATOS'!B101","v":"Antiparras."}]
[null,"Protección de la piel y del cuerpo:",":",{"$f":"+'COMPLETAR DATOS'!B102","v":"Traje completo de Tyvek con capucha."}]
[]
[null,"7. MEDIDAS DE PRIMEROS AUXILIOS"]
[null,"a) Inhalación:",":",{"$f":"+'COMPLETAR DATOS'!B42","v":"Trasladar al afectado al aire fresco, tenderlo y abrigarlo."}]
[null,"b) Contacto con la piel:",":",{"$f":"+'COMPLETAR DATOS'!B43","v":"Retirar la ropa contaminada y lavar la zona afectada con agua fría y jabón."}]
[null,"c) Contacto con los ojos:",":",{"$f":"+'COMPLETAR DATOS'!B44","v":"Si el producto ingresó a los ojos, retirar lentes de contactos si procede, lavar los ojos con agua fria por al menos 15 minutos."}]
[null,"d) Ingestión: ",":",{"$f":"+'COMPLETAR DATOS'!B45","v":"Dar a beber agua solo si el afectado esta consciente. No inducir vómito. En todos los casos, trasladar de inmediato a un centro asistencial"}]
[]
[null,"8. MEDIOS Y MEDIDAS PARA COMBATIR EL FUEGO:"]
[null,{"$f":"+'COMPLETAR DATOS'!B54","v":"Asperjar con agua para enfriar sector no afectado. Utilizar como médios de extinción los ya señalados. Aislar la zona afectada. El personal debe ingresar utilizando ropa adecuada para combatir incendios y equipo de respiración autónoma."}]
[null,"9. MEDIDAS PARA CONTROLAR DERRAMES O FUGAS:"]
[null,{"$f":"+'COMPLETAR DATOS'!B66","v":"Aislar el sector afectado, las personas utilizar los elementos de protección adecuados. Contener el derrame con sustancias inertes (arena, tierra). La recuperación no corresponde ya que la sustancia ha sido contaminada Aislar la zona afectada, si es posible contener el derrame con sustancias inertes. Barrer y recoger en recipientes claramente identificados. Finalmente, trasladar a un botadero autorizado para este tipo de sustancias, de acuerdo a lo indicado por la autoridad competente, otra alternativa es mediante incineración controlada en horno estándar a temperatura mayor de 1000 ºC con recuperación y filtrado de humos."}]
[]
[null,"10. INFORMACION COMPLEMENTARIA:"]
[null,"ANTIDOTO",":",{"$f":"+'COMPLETAR DATOS'!B48","v":"No se conoce antídoto específico. "}]
[null,"CLASE DE RIESGO",":",{"$f":"+'COMPLETAR DATOS'!B15","v":"6.1 TÓXICO"}]
[]
[]
[]
[null,"ELEMENTOS DE PROTECCION:"]
[null,{"$f":"CONCATENATE('COMPLETAR DATOS'!B99, \"  \",'COMPLETAR DATOS'!B100,\"  \", 'COMPLETAR DATOS'!B101, \"  \", 'COMPLETAR DATOS'!B102, \"  \", 'COMPLETAR DATOS'!B103)","v":"Máscara con filtro del tipo respirador purificador de aire con filtro tipo NIOSH N95 o N100 más cartucho OV.  Guantes de neopreno, latex.  Antiparras.  Traje completo de Tyvek con capucha.  Botas de goma sin forro interior."}]
[]
[]
[null,"Fecha de Actualización: ",null,{"$f":"NOW()","v":"2016-08-11T12:12:28.900"}]